bitfinex/quotes_ETHUSD_20241001
["timestamp","ask_amount","ask_price","bid_price","bid_amount"]
[1727790832190,1.4146,2578.4,2578.1,3.87877]
[1727790832380,3.87841,2578.4,2577.8,3.87925]
[1727790832578,5.31069,2578.7,2578.0,3.87887]
[1727790832785,9.18875,2578.7,2578.0,3.87887]
[1727790832981,3.87848,2578.4,2577.8,3.87923]
[1727790833720,3.87837,2578.5,2577.9,3.87908]
[1727790833928,3.87835,2578.5,2577.8,3.87923]
[1727790834080,4.266215,2578.4,2577.8,3.87918]
[1727790834279,0.387835,2578.4,2577.9,3.87907]
[1727790835016,4.266285,2578.4,2577.9,3.87912]
[1727790835227,0.387835,2578.4,2577.6,1.4338]
[1727790835521,3.87824,2578.5,2578.0,3.87888]
[1727790835686,1.4327,2578.7,2577.6,5.3133]
[1727790835886,3.87852,2578.4,2577.9,3.87909]
[1727790836109,4.654187,2578.4,2577.8,7.75846]
[1727790836309,4.654187,2578.4,2577.8,3.87917]
[1727790836687,4.654177,2578.4,2577.8,3.87917]
[1727790836893,0.775667,2578.4,2577.9,3.87904]
[1727790837090,0.775667,2578.4,2577.8,3.87917]
[1727790837091,3.87852,2578.3,2577.6,3.87948]
[1727790837335,1.4419,2578.1,2577.4,3.87981]
[1727790837492,1.4419,2578.1,2577.9,3.87907]
[1727790837692,3.87891,2578.1,2577.5,3.87964]
[1727790837903,1.4419,2578.4,2578.0,3.87896]
[1727790838222,1.4419,2578.4,2577.9,3.87911]
[1727790838524,3.87855,2578.3,2577.8,3.87919]
[1727790838729,4.798425,2578.3,2577.8,3.87923]
[1727790839033,0.919875,2578.3,2577.8,3.87918]
[1727790839322,0.919875,2578.3,2577.9,3.87903]
[1727790839531,1.4419,2578.4,2577.9,3.87903]
[1727790839846,0.534301,2579.1,2577.9,0.07757563]
[1727790839847,1.4841,2578.7,2577.9,0.07757563]
[1727790839993,3.8777,2578.9,2578.3,7.75679]
[1727790840197,1.4841,2579.0,2578.5,3.8782]
[1727790840389,1.4841,2579.0,2578.4,0.07756365]
[1727790840624,1.4841,2579.0,2578.3,1.4494]
[1727790840625,3.87711,2579.3,2578.7,7.75561]
[1727790840832,4.264961,2579.2,2578.7,3.87779]
[1727790841038,4.264961,2579.2,2578.8,3.87776]
[1727790841039,0.387711,2579.2,2578.8,3.87776]
[1727790841332,3.87631,2579.8,2578.9,1.53126482]
[1727790841333,1.4353,2579.7,2578.9,1.53126482]
[1727790841500,1.4353,2579.7,2578.9,1.4867]
[1727790841706,3.87674,2579.5,2578.8,3.87767]
[1727790841902,5.2424,2579.0,2578.4,3.87831]
[1727790842105,3.87762,2578.9,2578.4,3.87831]
[1727790842530,3.87762,2578.9,2578.1,4.3576]
[1727790842531,1.3648,2579.0,2578.1,1.3576]
[1727790843001,3.87741,2579.1,2578.4,3.87826]
[1727790843204,3.87763,2578.9,2578.4,3.87836]
[1727790843406,4.265563,2578.8,2578.2,3.87857]
[1727790843606,3.87842,2578.4,2577.9,3.87902]
[1727790843815,3.87828,2578.5,2577.8,3.87913]
[1727790844203,3.87891,2578.1,2577.6,3.87946]
[1727790844398,1.428,2578.1,2577.2,5.2279]
[1727790844657,1.428,2578.1,2576.4,5.02496697]
[1727790844658,5.30687,2578.1,2577.4,3.87985]
[1727790844810,5.30687,2578.1,2576.9,5.2284]
[1727790844811,3.87956,2577.7,2577.0,3.88038]
[1727790845140,3.87965,2577.6,2577.0,3.88038]
[1727790845301,3.87973,2577.5,2577.0,3.88038]
[1727790845613,7.75959,2577.5,2577.0,3.88038]
[1727790845812,3.87973,2577.5,2577.0,3.88038]
[1727790846215,1.4051,2577.4,2577.0,3.88034]
[1727790846557,3.8789,2578.1,2577.1,3.95792418]
[1727790846717,3.87892,2578.1,2577.5,3.87963]
[1727790846915,3.87921,2577.9,2577.3,3.87994]
[1727790847118,1.4051,2578.2,2577.3,3.87994]
[1727790847119,1.4051,2578.2,2577.3,0.834714]
[1727790847462,1.4051,2578.2,2577.6,3.87952]
[1727790847655,1.4051,2578.2,2577.4,0.07759506]
[1727790847813,1.4051,2578.2,2577.3,3.87997]
[1727790847814,1.3629,2578.6,2578.2,3.87867]
[1727790848149,1.3629,2578.6,2578.1,3.8788]
[1727790848298,3.87741,2579.1,2578.2,3.87865]
[1727790848299,1.3756,2579.0,2578.2,3.87865]
[1727790848504,0.525301,2578.9,2578.2,3.87859]
[1727790849050,0.525301,2578.9,2578.3,3.87849]
[1727790849266,0.525301,2578.9,2578.4,3.87828]
[1727790849462,3.8766,2579.6,2578.7,3.87788]
[1727790849463,3.87668,2579.6,2578.7,3.87788]
[1727790849757,3.87674,2579.5,2578.7,3.87788]
[1727790849921,3.87668,2579.6,2578.5,3.8782]
[1727790850122,3.87668,2579.6,2578.7,3.87782]
[1727790850427,5.29932,2579.8,2578.6,3.87794]
[1727790850624,3.87659,2579.6,2578.8,3.87765]
[1727790850918,0.387659,2579.5,2578.9,3.87761]
[1727790851139,3.8766,2579.6,2578.8,3.87765]
[1727790851363,3.87699,2579.4,2578.6,3.87802]
[1727790851562,3.8766,2579.6,2578.6,3.87802]
[1727790851735,3.87688,2579.4,2578.6,3.87802]
[1727790852045,3.87722,2579.2,2578.2,6.87853]
[1727790852257,0.521962,2579.1,2578.3,3.87841]
[1727790852435,4.399302,2579.1,2578.2,3.87853]
[1727790852644,1.3424,2578.7,2578.0,3.87892]
[1727790853161,1.3424,2578.7,2578.1,3.87879]
[1727790853465,1.3424,2578.7,2578.2,3.87856]
[1727790853639,1.4723,2579.0,2578.2,3.87856]
[1727790853836,1.9122172,2579.0,2578.3,3.87852]
[1727790854054,1.9122172,2579.0,2578.2,3.87856]
[1727790854337,1.9122172,2579.0,2578.4,3.87827]
[1727790854532,1.9122172,2579.0,2578.2,3.87856]
[1727790854735,0.24341792,2578.9,2578.2,3.87856]
[1727790855003,1.9122172,2579.0,2577.9,4.4379]
[1727790855004,1.9122172,2579.0,2578.4,3.87828]
[1727790855147,1.4552,2579.4,2578.6,3.87805]
[1727790855493,1.3674,2579.8,2579.2,3.87714]
[1727790855644,1.3674,2579.8,2579.3,3.87698]
[1727790855975,5.768116,2579.8,2578.9,7.7551]
[1727790856184,5.768116,2579.8,2578.9,3.87751]
[1727790856385,5.768116,2579.8,2578.7,3.87785]
[1727790856672,5.768116,2579.8,2578.8,3.87774]
[1727790856673,0.34228426,2579.7,2578.8,3.87774]
[1727790856882,3.8767,2579.6,2578.8,3.87774]
[1727790857046,3.8767,2579.6,2578.7,3.87777]
[1727790857047,0.38767,2579.5,2578.9,3.87753]
[1727790857586,5.768066,2579.8,2578.9,3.90289343]
[1727790857587,1.891746,2579.8,2578.9,3.90289343]
[1727790857741,5.24375,2579.8,2578.9,3.87747]
[1727790857939,3.87657,2579.6,2578.9,3.87747]
[1727790858642,3.87673,2579.5,2578.8,3.87771]
[1727790858907,5.24374,2579.8,2578.9,3.87762]
[1727790859343,1.3674,2579.8,2579.2,3.87714]
[1727790859511,0.524353,2579.7,2579.1,3.8773]
[1727790860016,0.524353,2579.7,2579.1,3.87722]
[1727790860213,0.524353,2579.7,2579.3,3.87698]
[1727790860452,1.3674,2579.8,2579.3,3.87698]
[1727790860804,1.3674,2579.8,2579.5,3.87667]
[1727790861036,4.6592301,2580.4,2579.5,3.87667]
[1727790861037,1.366,2580.2,2579.7,3.87639]
[1727790861339,1.366,2580.2,2579.5,3.87667]
[1727790861340,1.366,2580.2,2579.5,3.87662]
[1727790861517,1.366,2580.2,2579.8,3.87625]
[1727790861724,1.4137,2580.6,2580.0,3.87596]
[1727790862048,1.4137,2580.6,2580.0,3.87589]
[1727790862251,0.7837601,2581.1,2580.0,3.87588]
[1727790862418,0.34251969,2581.0,2580.1,3.0775001]
[1727790862623,3.8742,2581.2,2580.4,3.87527]
[1727790862836,0.38742,2581.1,2580.3,3.0]
[1727790863038,0.38742,2581.1,2580.4,3.87523]
[1727790863260,0.38742,2581.1,2580.5,0.07749556]
[1727790863408,5.31406,2581.4,2580.7,3.87491]
[1727790863609,5.31406,2581.4,2580.6,7.74992]
[1727790864155,1.4402,2581.4,2580.9,3.8746]
[1727790864828,5.31406,2581.4,2580.7,3.87489]
[1727790865029,5.31406,2581.4,2580.5,5.24371]
[1727790865232,0.531406,2581.3,2580.5,1.3686]
[1727790865449,3.87418,2581.2,2580.5,3.87517]
[1727790865649,0.531406,2581.3,2580.6,3.87499]
[1727790866170,1.4762,2581.7,2580.8,1.4578]
[1727790866367,1.4153,2582.0,2581.4,3.87385]
[1727790866576,1.4153,2582.0,2581.3,3.87388]
[1727790866871,0.37144178,2582.2,2581.7,1.3431]
[1727790867221,3.8727,2582.2,2581.6,3.0]
[1727790867538,1.3941,2582.0,2581.3,1.4512]
[1727790867736,1.3941,2582.0,2581.0,3.87439]
[1727790867737,1.3941,2582.0,2581.0,5.32558]
[1727790867951,3.82319,2581.9,2581.2,3.87415]
[1727790868158,3.82319,2581.9,2581.1,3.8742]
[1727790868528,1.3941,2582.0,2581.2,3.87401]
[1727790868738,1.3941,2582.0,2581.0,1.4512]
[1727790868739,3.87319,2581.9,2581.3,3.87401]
[1727790868954,3.87319,2581.9,2581.2,3.87407]
[1727790869123,3.87319,2581.9,2581.0,5.32557]
[1727790869124,3.87341,2581.7,2581.0,5.32557]
[1727790869324,3.87341,2581.7,2581.0,3.87438]
[1727790869753,3.87341,2581.7,2580.9,3.87449]
[1727790869967,0.387341,2581.6,2580.9,3.87449]
[1727790870169,0.387341,2581.6,2581.0,3.87445]
[1727790870677,3.87383,2581.5,2580.7,8.24732]
[1727790870872,1.3523,2581.4,2580.3,1.791]
[1727790871161,1.3523,2581.4,2580.9,3.8745]
[1727790871367,1.3523,2581.4,2580.7,3.8749]
[1727790871524,0.5613271,2581.4,2580.7,3.87482]
[1727790871868,3.87365,2581.6,2580.8,3.87475]
[1727790872068,7.74729,2581.6,2580.7,3.87482]
[1727790872369,3.87396,2581.4,2580.3,3.87542]
[1727790872663,3.87396,2581.4,2579.9,4.26475]
[1727790872664,1.3534,2580.9,2580.0,3.8759]
[1727790872871,1.3534,2580.9,2579.7,3.87631]
[1727790872872,3.87507,2580.6,2579.7,3.87631]
[1727790873164,1.3534,2580.9,2579.2,5.02496697]
[1727790873165,1.3925,2580.3,2579.5,3.87663]
[1727790873349,1.3925,2580.3,2579.6,3.87654]
[1727790873526,1.3925,2580.3,2579.8,3.87624]
[1727790873722,1.3925,2580.3,2579.8,3.87617]
[1727790873966,3.87468,2580.9,2580.0,3.87584]
[1727790873967,1.4336,2580.8,2580.0,3.87584]
[1727790874279,1.4336,2580.8,2580.2,3.87558]
[1727790874428,1.4336,2580.8,2580.2,7.75115]
[1727790874628,1.4336,2580.8,2580.1,3.0]
[1727790874977,3.87538,2580.4,2579.6,3.87643]
[1727790875143,1.4336,2580.3,2579.1,5.28556]
[1727790875476,1.964498,2580.3,2579.6,3.87644]
[1727790875764,1.4336,2580.3,2579.8,3.87615]
[1727790876868,1.4336,2580.3,2579.8,7.75232]
[1727790877067,1.4336,2580.3,2579.8,3.87615]
[1727790877285,1.4336,2580.3,2579.4,3.0]
[1727790877286,3.87567,2580.2,2579.4,3.0]
[1727790877429,3.87636,2579.8,2578.8,3.8777]
[1727790877645,1.3567,2579.7,2578.6,3.87801]
[1727790877876,4.4267,2579.6,2578.6,3.87798]
[1727790878474,3.87675,2579.5,2578.7,3.87789]
[1727790878683,3.87675,2579.5,2578.6,3.87797]
[1727790878684,3.87701,2579.4,2578.6,3.87797]
[1727790878836,3.87705,2579.3,2578.6,3.87797]
[1727790879034,4.707256,2579.4,2578.7,3.87789]
[1727790879236,4.707256,2579.4,2578.4,3.8783]
[1727790879237,1.3478,2579.2,2578.4,3.8783]
[1727790879438,1.3478,2579.2,2578.1,1.4475]
[1727790879439,3.87765,2578.9,2578.2,3.87855]
[1727790879638,8.30486,2579.1,2578.3,3.87851]
[1727790879892,3.87786,2578.8,2578.0,3.87887]
[1727790880055,0.55,2579.1,2577.2,1.4475]
[1727790880056,1.3478,2578.7,2577.2,1.4475]
[1727790880258,8.30627,2578.6,2577.8,3.87915]
[1727790880459,3.8787,2578.2,2577.2,1.4475]
[1727790880768,4.42846,2578.4,2577.7,3.87933]
[1727790880941,1.3592,2578.5,2577.9,3.87911]
[1727790881141,1.3592,2578.5,2577.2,6.91265603]
[1727790881343,1.3592,2578.5,2578.2,3.87867]
[1727790881649,1.3592,2578.5,2578.2,3.87857]
[1727790882652,5.02496697,2579.3,2578.2,3.87857]
[1727790882653,1.9683,2579.1,2578.4,3.87837]
[1727790882850,0.584555,2579.0,2578.4,3.87837]
[1727790883264,1.4183,2579.1,2578.6,3.87798]
[1727790884066,1.4183,2579.1,2578.9,3.87752]
[1727790884268,1.4183,2579.7,2579.1,3.87728]
[1727790884453,5.2948,2579.7,2579.1,3.87728]
[1727790884653,1.4183,2579.7,2579.1,3.87724]
[1727790884879,2.335397,2579.7,2579.1,3.87724]
[1727790885094,3.87659,2579.6,2578.7,3.87785]
[1727790885400,1.4834,2579.3,2578.8,3.87771]
[1727790885554,1.4834,2579.3,2578.7,3.87779]
[1727790886190,1.4834,2579.3,2578.8,3.87771]
[1727790886491,1.4834,2579.3,2578.1,3.0]
[1727790886492,3.87725,2579.2,2578.1,3.0]
[1727790886692,5.29534,2579.2,2577.9,1.4062]
[1727790886860,1.4181,2579.2,2578.0,0.44018906]
[1727790887055,1.4181,2579.2,2578.7,3.87791]
[1727790887266,1.4181,2579.2,2578.1,0.0726535]
[1727790887267,1.4181,2579.2,2578.9,3.8775]
[1727790888301,1.4181,2579.2,2578.9,7.75504]
[1727790888467,1.4181,2579.2,2579.0,3.87742]
[1727790888666,1.4181,2579.2,2578.9,3.8775]
[1727790888867,1.4181,2579.2,2578.7,3.87782]
[1727790889074,1.4181,2579.2,2578.5,1.3627]
[1727790889075,1.4181,2579.2,2578.5,3.87814]
[1727790889272,1.4181,2579.2,2578.8,3.87768]
[1727790889470,1.4181,2579.2,2579.0,3.87745]
[1727790889782,1.4181,2579.2,2578.8,3.87768]
[1727790889783,1.4181,2579.2,2578.7,3.87781]
[1727790889981,1.4181,2579.2,2578.8,3.87763]
[1727790890394,1.4181,2579.2,2578.6,3.87796]
[1727790890866,5.29528,2579.2,2578.6,3.87796]
[1727790891069,0.529528,2579.1,2578.7,3.87792]
[1727790891471,0.529528,2579.1,2578.7,3.8779]
[1727790891671,3.8768,2579.5,2578.2,1.3627]
[1727790891855,6.146087,2579.7,2578.2,1.3627]
[1727790892059,2.269597,2579.7,2578.7,3.8779]
[1727790892292,6.146017,2579.7,2579.1,3.87722]
[1727790892494,6.146017,2579.7,2579.1,7.75442]
[1727790892711,6.146017,2579.7,2579.2,3.87717]
[1727790892712,0.6146017,2579.6,2579.2,3.87717]
[1727790892995,0.6146017,2579.6,2579.1,3.8772]
[1727790893385,2.269597,2579.7,2579.2,3.87708]
[1727790893587,1.3525,2579.7,2579.4,3.87684]
[1727790893920,5.2491,2580.1,2579.4,3.87677]
[1727790894195,3.87603,2580.0,2579.4,3.87677]
[1727790894363,3.87642,2579.7,2579.2,3.87706]
[1727790894559,1.3732,2579.6,2579.2,3.87706]
[1727790894862,3.87687,2579.4,2578.6,1.3717]
[1727790895062,3.87687,2579.4,2578.7,3.87785]
[1727790895063,3.8771,2579.3,2578.7,3.87785]
[1727790895288,1.3985,2579.1,2578.2,1.3717]
[1727790895562,3.87727,2579.2,2578.0,3.87887]
[1727790895563,3.87818,2578.6,2578.0,3.87887]
[1727790895763,0.387818,2578.5,2578.2,3.87859]
[1727790895995,3.87785,2578.8,2578.2,7.75717]
[1727790896210,3.87787,2578.8,2578.0,3.87885]
[1727790896408,3.87868,2578.2,2577.7,3.87941]
[1727790896575,1.3923,2578.3,2578.1,3.87875]
[1727790896764,1.3923,2578.3,2578.1,3.87873]
[1727790896966,1.3923,2578.3,2577.8,3.0]
[1727790897275,1.3923,2578.3,2577.9,3.87907]
[1727790897477,3.87766,2578.9,2578.1,1.3407]
[1727790897683,3.87766,2578.9,2578.1,3.87873]
[1727790897684,3.87801,2578.7,2578.1,3.87873]
[1727790897889,3.87777,2578.8,2578.3,3.8785]
[1727790898103,1.3874,2579.0,2578.4,3.8783]
[1727790898104,5.26488,2579.0,2578.4,3.8783]
[1727790898310,2.301631,2579.0,2578.6,3.87806]
[1727790898460,1.3874,2579.0,2578.6,3.87798]
[1727790899604,1.3874,2579.0,2578.7,3.87783]
[1727790899776,5.26488,2579.0,2578.5,3.87821]
[1727790900288,1.3874,2579.0,2578.6,3.87805]
[1727790900495,1.3874,2579.0,2578.2,4.4419]
[1727790900496,1.3874,2579.0,2578.4,7.75659]
[1727790900663,3.87818,2578.6,2578.0,3.87893]
[1727790900865,3.87818,2578.6,2577.9,3.879]
[1727790900866,1.3544,2578.5,2577.9,3.879]
[1727790901114,1.3544,2578.5,2578.1,3.8788]
[1727790901407,5.23274,2578.5,2577.7,3.87934]
[1727790901713,5.23274,2578.5,2577.8,4.267204]
[1727790901893,1.3544,2578.5,2577.9,3.8791]
[1727790902067,1.3544,2578.5,2577.9,3.87899]
[1727790902416,3.87837,2578.4,2577.8,4.267204]
[1727790902565,7.75683,2578.4,2577.7,3.87933]
[1727790902763,7.75683,2578.4,2576.3,5.88147]
[1727790902764,3.87937,2577.8,2576.8,1.3446]
[1727790902980,3.87937,2577.8,2577.2,3.88008]
[1727790902981,1.3913,2577.7,2577.2,3.88008]
[1727790903204,3.87958,2577.6,2577.0,7.76078]
[1727790903392,1.3913,2577.7,2577.2,3.88017]
[1727790903591,1.3913,2577.7,2576.8,1.80831906]
[1727790903834,1.4754,2578.1,2577.5,3.87962]
[1727790903971,1.4754,2578.1,2577.8,3.87914]
[1727790904167,1.4063,2578.5,2577.6,1.4072]
[1727790904609,1.4063,2578.5,2578.0,3.87893]
[1727790904774,5.2846,2578.5,2577.9,3.87908]
[1727790904988,1.4063,2578.5,2578.2,3.87862]
[1727790905307,3.8778,2578.8,2578.2,4.266482]
[1727790905468,1.4461,2578.9,2578.3,3.87849]
[1727790905663,1.4461,2578.9,2578.2,3.87862]
[1727790905664,5.32384,2578.9,2578.2,3.87862]
[1727790905867,3.87779,2578.8,2578.2,7.7572]
[1727790906062,3.87779,2578.8,2578.2,3.87858]
[1727790906299,3.87779,2578.8,2578.2,7.75716]
[1727790906515,3.87696,2579.4,2578.5,3.87821]
[1727790906714,1.4447,2579.3,2579.0,3.87746]
[1727790906913,1.4447,2580.1,2579.1,3.87722]
[1727790907113,1.3805,2579.1,2578.1,0.3887]
[1727790907321,1.3805,2578.0,2577.1,1.3621]
[1727790907519,3.87955,2577.7,2577.0,3.88041]
[1727790907683,3.87955,2577.7,2576.8,1.3621]
[1727790907684,3.87955,2577.7,2576.8,5.24276]
[1727790907884,3.87967,2577.6,2576.9,3.8806]
[1727790908273,3.87967,2577.6,2576.8,5.24276]
[1727790908476,1.4489,2577.3,2576.3,1.4043]
[1727790908712,1.4489,2577.3,2576.9,3.88051]
[1727790908924,1.4489,2577.3,2576.9,7.76102]
[1727790909218,1.4489,2577.3,2576.9,3.88051]
[1727790909729,8.90460697,2577.6,2576.8,3.0]
[1727790909880,1.4294,2577.7,2577.2,3.88017]
[1727790910201,1.4294,2577.7,2577.0,7.76069]
[1727790910376,1.4294,2577.7,2577.1,3.88029]
[1727790910577,1.4294,2577.7,2577.0,3.88033]
[1727790910778,1.4294,2577.7,2577.1,3.88031]
[1727790911012,1.4294,2577.7,2576.8,6.88066]
[1727790911218,1.4294,2577.7,2576.6,3.88097]
[1727790911219,5.02496697,2577.6,2576.6,3.88097]
[1727790911532,3.88044,2577.1,2576.2,3.88158]
[1727790911814,1.4294,2577.3,2576.7,3.8809]
[1727790912018,1.4294,2577.3,2576.9,3.88056]
[1727790912172,1.4294,2577.9,2577.2,3.88007]
[1727790912373,1.4294,2577.9,2577.4,3.87987]
[1727790912776,1.4294,2577.9,2577.5,3.87961]
[1727790912996,1.4294,2577.9,2577.6,3.87957]
[1727790913726,3.87865,2578.3,2577.3,0.388007]
[1727790913727,3.87872,2578.2,2577.5,3.87971]
[1727790913923,1.4294,2578.3,2577.6,3.87955]
[1727790914075,5.30799,2578.3,2577.6,3.87955]
[1727790914425,1.4294,2578.3,2577.8,3.87926]
[1727790914728,3.0,2579.0,2577.6,3.87955]
[1727790914729,0.7837601,2579.1,2577.6,3.87949]
[1727790914877,0.7837601,2579.1,2578.5,3.87811]
[1727790914878,1.4294,2579.1,2578.5,3.87811]
[1727790915083,1.4294,2579.1,2577.9,2.01146855]
[1727790915084,0.530666,2579.0,2577.9,2.01146855]
[1727790915290,1.4294,2579.1,2578.9,3.87752]
[1727790915550,5.02496697,2580.0,2579.3,3.87702]
[1727790915551,1.4033,2580.0,2579.3,3.87702]
[1727790915827,3.87628,2579.8,2579.1,3.87718]
[1727790915991,3.87658,2579.6,2578.9,3.87759]
[1727790916196,3.87658,2579.6,2578.9,3.87752]
[1727790916693,0.387658,2579.5,2579.0,3.87746]
[1727790916896,1.4033,2579.4,2578.9,3.87752]
[1727790917230,1.4033,2579.4,2578.5,3.87813]
[1727790917231,5.02496697,2579.2,2578.5,3.87813]
[1727790917536,5.02496697,2579.2,2578.7,3.87781]
[1727790917891,6.44319367,2579.2,2578.7,3.87781]
[1727790918123,10.32050367,2579.2,2578.5,3.87813]
[1727790918337,6.42826697,2578.8,2577.9,1.3432]
[1727790918537,6.42826697,2578.8,2578.1,3.87873]
[1727790918538,10.30606697,2578.8,2578.1,3.87873]
[1727790918691,10.30606697,2578.8,2578.2,3.87858]
[1727790918892,11.72442467,2578.8,2578.2,3.87858]
[1727790919093,11.72442467,2578.8,2578.1,3.87873]
[1727790919462,1.3978,2579.1,2578.8,3.87776]
[1727790919740,0.34235683,2579.0,2578.5,3.87813]
[1727790919905,5.27522,2579.1,2578.0,1.4199]
[1727790919906,1.3978,2579.1,2578.0,1.4199]
[1727790920104,1.3978,2579.1,2578.8,3.87776]
[1727790920318,1.353,2579.5,2578.1,1.3381]
[1727790920625,1.353,2579.9,2579.4,3.87687]
[1727790920824,1.353,2579.9,2579.6,3.87652]
[1727790921207,1.353,2579.9,2579.5,3.87663]
[1727790921622,1.353,2579.9,2578.8,1.3381]
[1727790921623,0.34271571,2579.8,2579.3,3.87693]
[1727790921821,0.34271571,2579.8,2579.3,3.877]
[1727790922025,0.34277773,2579.7,2578.9,3.87756]
[1727790922231,0.8911519,2579.6,2579.1,3.8773]
[1727790922442,0.34277773,2579.5,2578.9,3.8775]
[1727790922646,0.34277773,2579.4,2578.9,3.8775]
[1727790923052,0.34277773,2579.4,2579.1,3.87721]
[1727790923255,0.34277773,2579.6,2579.1,3.87721]
[1727790923556,5.22924,2579.9,2579.3,3.877]
[1727790923557,0.3429714,2579.5,2579.3,3.877]
[1727790923721,6.0130001,2579.9,2579.3,3.877]
[1727790923932,0.89175843,2579.8,2579.3,3.877]
[1727790924258,0.89175843,2579.8,2579.1,3.87726]
[1727790924259,3.87651,2579.7,2579.1,3.87726]
[1727790924412,4.21949932,2579.7,2579.1,3.87726]
[1727790924616,0.34298932,2579.7,2578.9,3.87757]
[1727790924862,1.1999796,2579.7,2579.0,3.87745]
[1727790925169,0.65124945,2579.7,2578.8,3.87769]
[1727790925344,4.42530038,2579.6,2579.0,3.87745]
[1727790925527,0.89162938,2579.5,2578.8,3.87769]
[1727790925732,5.23552,2578.9,2578.3,3.87842]
[1727790925927,5.23552,2578.9,2578.0,1.349]
[1727790925928,5.23552,2578.9,2578.4,3.87836]
[1727790926126,0.34282402,2578.8,2578.7,3.87792]
[1727790926389,1.89145941,2579.4,2578.8,3.87774]
[1727790926390,2.1382601,2579.4,2578.8,3.87774]
[1727790926547,2.1382601,2579.4,2578.6,3.87795]
[1727790926548,4.21993286,2579.3,2578.6,3.87795]
[1727790926770,4.21993286,2579.3,2578.0,1.349]
[1727790926771,7.7374172,2579.2,2578.2,3.87859]
[1727790927066,3.87781,2578.8,2578.2,3.87863]
[1727790927272,3.8777,2578.9,2578.3,3.87851]
[1727790927418,5.01118013,2578.9,2578.3,3.87851]
[1727790927975,5.01118013,2578.9,2578.2,3.87863]
[1727790927976,0.342783,2578.8,2578.2,3.87857]
[1727790928269,5.01118013,2578.9,2578.3,3.87844]
[1727790928771,0.34281808,2578.8,2578.3,3.87847]
[1727790928936,5.01118013,2578.9,2578.3,3.87847]
[1727790929139,6.0156301,2579.1,2578.4,3.87825]
[1727790929326,0.34282003,2579.0,2577.8,3.0]
[1727790929526,1.3545,2579.1,2578.8,3.87768]
[1727790929767,1.3545,2579.1,2578.5,7.75627]
[1727790929768,5.23194,2579.1,2578.5,7.75627]
[1727790929924,1.3545,2579.1,2578.8,3.87775]
[1727790930555,1.3545,2579.1,2578.7,3.87782]
[1727790930763,1.4724,2579.4,2578.9,3.87751]
[1727790930969,1.4724,2579.4,2578.8,3.87774]
[1727790931184,3.87704,2579.3,2578.7,3.87784]
[1727790931470,3.87704,2579.3,2578.7,3.87782]
[1727790931841,3.87718,2579.2,2578.7,3.87782]
[1727790932040,3.87759,2579.0,2578.4,3.87827]
[1727790932344,0.922662,2579.2,2578.0,3.87892]
[1727790932345,0.922662,2579.2,2578.7,3.87783]
[1727790932566,3.87727,2579.2,2578.6,3.87798]
[1727790932929,4.6607901,2579.3,2578.5,3.87812]
[1727790932930,3.87738,2579.1,2578.5,3.87812]
[1727790933253,3.87755,2579.0,2578.5,3.87812]
[1727790933574,3.87738,2579.1,2578.6,3.87803]
[1727790933742,3.87778,2578.8,2578.3,3.87837]
[1727790933969,3.87794,2578.7,2578.2,3.0]
[1727790934286,2.122525,2578.8,2578.5,3.87821]
[1727790934447,1.347,2578.8,2578.5,7.75634]
[1727790934652,0.7837601,2579.1,2578.6,3.87805]
[1727790934653,2.2529601,2579.1,2578.6,3.87805]
[1727790934975,2.2529601,2579.1,2578.0,3.87888]
[1727790934976,3.8782,2578.6,2578.0,3.87888]
[1727790935136,1.4692,2578.7,2578.0,3.87888]
[1727790935331,1.4692,2578.7,2578.0,3.87885]
[1727790935536,1.4692,2578.7,2578.2,3.87854]
[1727790936372,3.87807,2578.6,2578.0,3.87887]
[1727790936549,1.4692,2578.7,2578.2,3.87862]
[1727790937182,1.4692,2578.7,2578.0,7.75773]
[1727790937366,3.87831,2578.5,2577.7,6.8794]
[1727790937686,3.87831,2578.5,2576.5,7.02496697]
[1727790937687,1.4431,2577.8,2576.9,3.88058]
[1727790937906,5.3627,2578.1,2577.6,3.87953]
[1727790938079,0.61464601,2578.0,2577.6,3.87953]
[1727790938247,1.4838,2578.1,2577.6,3.87947]
[1727790939075,1.4838,2578.1,2577.7,3.87934]
[1727790939282,0.7837601,2578.4,2577.5,3.87971]
[1727790939606,4.6614801,2578.9,2578.3,3.87852]
[1727790939753,3.8778,2578.8,2578.3,3.87852]
[1727790939952,3.8778,2578.8,2578.1,5.35403]
[1727790939953,0.7837601,2579.1,2578.5,3.87814]
[1727790940303,3.8775,2579.0,2578.5,3.87816]
[1727790940599,3.8775,2579.0,2578.3,3.87846]
[1727790940886,3.87778,2578.8,2578.3,3.87846]
[1727790941094,4.34393401,2578.8,2578.1,3.87877]
[1727790941251,4.34393401,2578.8,2577.9,3.87904]
[1727790941252,3.87809,2578.6,2577.9,3.87904]
[1727790941461,3.87809,2578.6,2578.1,3.87873]
[1727790941754,1.3615,2578.7,2578.3,3.87843]
[1727790942183,6.0228301,2579.0,2578.3,0.07745249]
[1727790942344,1.3615,2579.0,2578.6,3.87805]
[1727790942562,1.3615,2579.0,2578.5,3.87807]
[1727790942764,1.3615,2579.0,2578.6,3.87805]
[1727790943180,1.3615,2579.0,2578.5,3.87807]
[1727790943507,5.73505362,2579.0,2578.3,3.87837]
[1727790943793,5.73505362,2579.0,2578.5,3.87813]
[1727790943980,3.87781,2578.8,2578.3,3.87843]
[1727790944150,3.87781,2578.8,2578.2,3.87858]
[1727790944151,4.6614501,2578.9,2578.4,3.87829]